fUSD/lending_fUSD_20260318
["ID","MTS","AMOUNT","RATE_DAILY","PERIOD"]
[408524240,1773821438532,-1006.28638887,0.00015516,2]
[408524241,1773821438541,-214.0,0.00015522,2]
[408524242,1773821438550,-1258.0,0.00015536,2]
[408524243,1773821438559,-503.44627183,0.00015536,2]
[408524244,1773821438568,-1500.0,0.00015536,2]
[408524245,1773821438577,-500.0,0.00015536,2]
[408524246,1773821438586,-306.667059,0.00015539,7]
[408524247,1773821438596,-1156.49783078,0.00015557,2]
[408524248,1773821438606,-7795.59856388,0.00015607,2]
[408524249,1773821438617,-5095.84660559,0.00015622,2]
[408524250,1773821438628,-214.0,0.00015645,2]
[408524251,1773821438637,-303.440082,0.00015666,2]
[408524252,1773821438648,-1344.0,0.00015689,2]
[408524253,1773821438658,-1044.0,0.00015689,2]
[408524254,1773821438668,-1260.0,0.00015689,2]
[408524255,1773821438678,-923.0,0.00015689,2]
[408524256,1773821438687,-1215.0,0.00015689,2]
[408524257,1773821438697,-2465.0,0.00015689,2]
[408524258,1773821438705,-3757.0,0.00015689,2]
[408524259,1773821438714,-3281.0,0.000157,2]
[408524260,1773821438724,-367.088513,0.00015734,7]
[408524261,1773821438738,-1912.0871643,0.00015745,2]
[408524262,1773821438747,-214.0,0.00015757,2]
[408524263,1773821438756,-2968.24658963,0.00015778,2]
[408524264,1773821438766,-12856.0728417,0.00015788,2]
[408524265,1773821438778,-59817.26688662,0.000158,2]
[408524266,1773821438787,-214.0,0.00015816,2]
[408524267,1773821438797,-501.44814979,0.00015828,2]
[408524268,1773821438807,-500.0,0.00015828,2]
[408524269,1773821438817,-587.0,0.00015828,2]
[408524270,1773821438826,-350.883058,0.00015836,7]
[408524271,1773821438835,-211.97088,0.00015836,7]
[408524272,1773821438844,-293.318169,0.00015836,7]
[408524273,1773821438855,-162.786713,0.00015836,7]
[408524274,1773821438864,-160.0,0.00015836,7]
[408524275,1773821438873,-247.412503,0.00015836,7]
[408524276,1773821438883,-334.825006,0.00015836,7]
[408524277,1773821438892,-289.270922,0.00015836,7]
[408524278,1773821438903,-190.505395,0.00015836,7]
[408524279,1773821438912,-31090.8333,0.00015856,2]
[408524280,1773821438922,-150.0,0.00015878,2]
[408524281,1773821438931,-3100.0,0.000159,5]
[408524282,1773821438940,-1000.0,0.000159,4]
[408524283,1773821438949,-1000.41,0.000159,3]
[408524284,1773821438959,-2531.0,0.0001594,5]
[408524285,1773821438968,-155.45790751,0.00015953,2]
[408524286,1773821438978,-381.20270533,0.00015955,2]
[408524287,1773821438987,-151.0,0.00015956,2]
[408524288,1773821438996,-151.0,0.00015956,2]
[408524289,1773821439005,-535.95738831,0.00015979,2]
[408524290,1773821439014,-214.0,0.00015984,2]
[408524291,1773821439023,-29.66228495,0.00016,5]
[408524292,1773821439527,-1159.84861026,0.00016,5]
[408524293,1773821439542,-708.41508843,0.00016,5]
[408524297,1773821440270,-439.25206393,0.00015689,2]
[408524298,1773821440538,-279.89771197,0.00015689,2]
[408524299,1773821440550,-463.17396815,0.00015689,2]
[408524300,1773821440561,-4822.67625595,0.00015689,2]
[408524301,1773821440570,-151.0,0.00015984,2]
[408524302,1773821440579,-213.92636533,0.00015984,2]
[408524303,1773821440588,-517.07401636,0.00016,5]
[408524304,1773821440597,-310.000001,0.00016,2]
[408524305,1773821440606,-11961.93389574,0.00016056,2]
[408524306,1773821440615,-120.38425102,0.00016066,2]
[408524317,1773821442854,-901.48698902,0.00016,2]
[408524318,1773821442876,-362.57302449,0.00016,2]
[408524319,1773821442962,-738.53,0.00016,2]
[408524320,1773821443071,-443.91426541,0.00016,2]
[408524344,1773821445779,-7425.23093045,0.00016,2]
[408524345,1773821446015,-5119.5685362,0.00016,2]
[408524346,1773821446028,-8870.57998341,0.00016,2]
[408524349,1773821512337,2262.8,0.00030137,120]
[408524350,1773821585515,2572.63,0.00030137,120]
[408524355,1773821769842,1000.0,9.8e-05,2]
[408524356,1773821910770,6918.25,0.00030137,120]
[408524357,1773822163521,-312.10318944,0.0001,2]
[408524358,1773822163554,-232.0,0.0001,2]
[408524359,1773822163662,-7778.87362112,0.0001,2]
[408524360,1773822169006,-10000.01,0.0001,2]
[408524361,1773822169216,-10000.01,0.0001,2]
[408524362,1773822169320,-10000.01,0.0001,2]
[408524363,1773822173098,-10000.01,0.0001,2]
[408524364,1773822255874,5000.0,0.00030137,120]
[408524370,1773822631958,-2315.58052437,9.99e-05,2]
[408524371,1773822631968,-300.0,9.998e-05,2]
[408524372,1773822631978,-1200.0,9.999e-05,2]
[408524373,1773822631987,-300.0,9.999e-05,2]
[408524374,1773822631997,-300.0,9.999e-05,2]
[408524375,1773822632006,-150.0,9.999e-05,2]
[408524376,1773822632015,-250.0,0.0001,2]
[408524377,1773822632025,-300.0,0.0001,7]
[408524378,1773822632034,-28008.62179814,0.0001,2]
[408524379,1773822632043,-32382.73539032,0.0001,2]
[408524380,1773822632053,-168.99528614,0.0001,2]
[408524381,1773822632062,-168.99528614,0.00010719,2]
[408524382,1773822632071,-232.40089415,0.00010819,2]
[408524390,1773822632273,-420.0,0.00010998,2]
[408524391,1773822632284,-250.0,0.00010999,2]
[408524393,1773822632294,-873.58766257,0.00010999,2]
[408524396,1773822632303,-1680.0,0.00010999,2]
[408524398,1773822632312,-255.0,0.00010999,2]
[408524399,1773822632321,-587.0,0.00012098,2]
[408524400,1773822632330,-691.0,0.00012099,2]
[408524401,1773822632339,-298.0,0.00012099,2]
[408524402,1773822632349,-3307.89,0.00012521,2]
[408524403,1773822632358,-397.8,0.00012656,2]
[408524404,1773822632367,-558.28,0.0001285,2]
[408524405,1773822632376,-200.0,0.00012874,2]
[408524406,1773822632385,-5879.75,0.00013038,2]
[408524407,1773822632394,-5041.63234419,0.00013205,2]
[408524408,1773822632403,-823.0,0.00013307,2]
[408524409,1773822632412,-500.0,0.00013426,2]
[408524410,1773822632421,-150.0,0.00013426,2]
[408524411,1773822632430,-2000.0,0.00013426,2]
[408524412,1773822632439,-1500.0,0.00013426,2]
[408524413,1773822632448,-3320.35,0.00013426,2]
[408524414,1773822632458,-504.70846637,0.000135,2]
[408524415,1773822632467,-2076.03462528,0.000135,2]
[408524416,1773822632476,-1632.81996029,0.000135,2]
[408524417,1773822632485,-1824.68136848,0.000135,2]
[408524418,1773822632494,-1164.69491743,0.000135,2]
[408524419,1773822632504,-240.7481,0.00013506,2]
[408524420,1773822632513,-6631.3178,0.00013506,2]
[408524421,1773822632523,-2500.0,0.00013506,2]
[408524422,1773822632532,-3615.658,0.00013572,2]
[408524423,1773822632542,-171.468,0.00013572,2]
[408524424,1773822632551,-461.11214793,0.00013573,2]
[408524425,1773822632561,-6281.69396405,0.00013573,2]
[408524426,1773822632570,-1912.0871643,0.00013573,2]
[408524427,1773822632579,-1554.36999466,0.00013596,2]
[408524428,1773822632589,-1300.0,0.000136,4]
[408524429,1773822632598,-151.0,0.00013603,2]
[408524430,1773822632607,-151.0,0.00013603,2]
[408524431,1773822632617,-500.0,0.00013605,2]
[408524432,1773822632626,-500.0,0.00013605,2]
[408524433,1773822632635,-500.0,0.00013605,2]
[408524434,1773822632644,-500.0,0.00013605,2]
[408524435,1773822632653,-500.0,0.00013605,2]
[408524436,1773822632663,-500.0,0.00013605,2]
[408524437,1773822632673,-500.0,0.00013605,2]
[408524438,1773822632682,-500.0,0.00013605,2]
[408524439,1773822632692,-500.0,0.00013605,2]
[408524440,1773822632702,-500.0,0.00013605,2]
[408524441,1773822632711,-500.0,0.00013605,2]
[408524442,1773822632720,-500.0,0.00013605,2]
[408524443,1773822632729,-500.0,0.00013605,2]
[408524444,1773822632738,-500.0,0.00013605,2]
[408524445,1773822632747,-500.0,0.00013605,2]
[408524446,1773822632756,-500.0,0.00013605,2]
[408524447,1773822632765,-500.0,0.00013605,2]
[408524448,1773822632774,-500.0,0.00013605,2]
[408524449,1773822632783,-500.0,0.00013605,2]
[408524450,1773822632792,-500.0,0.00013605,2]
[408524451,1773822632801,-500.0,0.00013605,2]
[408524452,1773822632810,-500.0,0.00013605,2]
[408524453,1773822632820,-500.0,0.00013605,2]
[408524454,1773822632829,-500.0,0.00013605,2]
[408524455,1773822632839,-500.0,0.00013605,2]
[408524456,1773822632848,-500.0,0.00013605,2]
[408524457,1773822632857,-500.0,0.00013605,2]
[408524458,1773822632867,-500.0,0.00013605,2]
[408524459,1773822632876,-500.0,0.00013605,2]
[408524460,1773822632886,-500.0,0.00013605,2]
[408524461,1773822632896,-500.0,0.00013605,2]
[408524462,1773822632906,-549.91281249,0.00013605,2]
[408524463,1773822632916,-500.0,0.00013605,2]
[408524464,1773822632927,-500.0,0.00013605,2]
[408524465,1773822632935,-500.0,0.00013605,2]
[408524466,1773822632944,-500.0,0.00013605,2]
[408524467,1773822632953,-500.0,0.00013605,2]
[408524468,1773822632963,-397.96144073,0.00013605,2]
[408524469,1773822632974,-500.0,0.00013605,2]
[408524470,1773822632983,-500.0,0.00013605,2]
[408524471,1773822632992,-500.0,0.00013605,2]
[408524472,1773822633002,-500.0,0.00013605,2]
[408524473,1773822633011,-450.0,0.00013605,2]
[408524474,1773822633020,-500.0,0.00013605,2]
[408524475,1773822633030,-500.0,0.00013605,2]
[408524476,1773822633038,-500.0,0.00013605,2]
[408524477,1773822633047,-500.0,0.00013605,2]
[408524478,1773822633056,-500.0,0.00013605,2]
[408524479,1773822633065,-500.0,0.00013605,2]
[408524480,1773822633074,-500.0,0.00013605,2]
[408524481,1773822633083,-500.0,0.00013605,2]
[408524482,1773822633094,-586.17033731,0.00013605,2]
[408524483,1773822633104,-208.41441499,0.00013605,2]
[408524484,1773822633113,-500.0,0.00013605,2]
[408524485,1773822633122,-318.61558419,0.00013605,2]
[408524486,1773822633131,-500.0,0.00013605,2]
[408524487,1773822633142,-527.3,0.00013605,2]
[408524488,1773822633155,-1923804.56015281,0.00013606,2]
[408524489,1773822633491,-16119.18778609,0.00013606,2]
[408524490,1773822633502,-905.49547409,0.00013606,2]
[408524491,1773822633513,-1306.980303,0.00013606,2]
[408524492,1773822633524,-1165.2630121,0.00013606,2]
[408524493,1773822633557,-690.95488694,0.00013606,2]
[408524494,1773822633570,-316098.67777097,0.00013606,2]
[408524502,1773822638525,-6713.72108542,0.00013606,2]
[408524503,1773822638556,-49249.03429514,0.00013606,2]
[408524504,1773822638670,-1173.12313015,0.00013606,2]
[408524505,1773822638702,-170506.12960329,0.00013606,2]
[408524506,1773822638714,-500.0,0.00013673,2]
[408524507,1773822638725,-503.10090674,0.00013673,2]
[408524508,1773822638734,-549.4886108,0.00013673,2]
[408524509,1773822638744,-501.53269212,0.00013673,2]
[408524510,1773822638753,-547.56076172,0.00013673,2]
[408524511,1773822638762,-500.0,0.00013673,2]
[408524512,1773822638771,-502.5180726,0.00013673,2]
[408524513,1773822638781,-503.2590129,0.00013673,2]
[408524514,1773822638790,-169.28549631,0.00013673,2]
[408524515,1773822638799,-500.0,0.00013673,2]
[408524516,1773822638809,-500.0,0.00013673,2]
[408524517,1773822638820,-500.0,0.00013673,2]
[408524518,1773822638830,-500.0,0.00013673,2]
[408524519,1773822638840,-500.41721931,0.00013673,2]
[408524520,1773822638849,-500.96454554,0.00013673,2]
[408524521,1773822638859,-500.0,0.00013673,2]
[408524522,1773822638868,-501.36558615,0.00013673,2]
[408524524,1773822638877,-500.0,0.00013673,2]
[408524526,1773822638888,-501.47938024,0.00013673,2]
[408524528,1773822638897,-501.49406508,0.00013673,2]
[408524531,1773822638910,-500.0,0.00013673,2]
[408524532,1773822638919,-488.32277684,0.00013698,2]
[408524535,1773822638930,-500.0,0.00013698,2]
[408524536,1773822638940,-500.0,0.00013698,2]
[408524539,1773822638950,-500.0,0.00013698,2]
[408524540,1773822638960,-500.0,0.00013698,2]
[408524542,1773822638969,-200.0,0.00013699,2]
[408524543,1773822638979,-333.94994869,0.00013699,2]
[408524544,1773822638988,-2600.0,0.000137,5]
[408524545,1773822638999,-198.51,0.000137,2]
[408524546,1773822639008,-198.51,0.000137,2]
[408524547,1773822639018,-856.1881,0.00013706,2]
[408524548,1773822639027,-1000.0,0.00013706,2]
[408524549,1773822639037,-4000.0,0.000138,5]
[408524550,1773822639047,-500.0,0.00013805,2]
[408524551,1773822639056,-500.0,0.00013805,2]
[408524552,1773822639066,-500.0,0.00013805,2]
[408524553,1773822639075,-166.66,0.00013829,2]
[408524554,1773822639084,-17448.2875839,0.00013835,2]
[408524555,1773822639093,-3670.1075432,0.00013835,2]
[408524556,1773822639102,-500.0,0.00013879,2]
[408524557,1773822639115,-527.3,0.00013879,2]
[408524558,1773822639124,-500.0,0.00013899,2]
[408524559,1773822639133,-500.0,0.00013899,2]
[408524560,1773822639142,-500.0,0.00013899,2]
[408524561,1773822639156,-5300.0,0.000139,5]
[408524562,1773822639165,-6281.69396397,0.00014054,2]
[408524563,1773822639174,-500.0,0.00014153,2]
[408524564,1773822639183,-527.3,0.00014153,2]
[408524565,1773822639194,-150.0,0.00014158,2]
[408524566,1773822639204,-253.018681,0.00014159,2]
[408524567,1773822639213,-1003.63129875,0.00014221,2]
[408524568,1773822639223,-1003.20890177,0.00014221,2]
[408524569,1773822639233,-1002.74799604,0.00014221,2]
[408524570,1773822639242,-1000.0,0.00014221,2]
[408524571,1773822639251,-1000.0,0.00014221,2]
[408524572,1773822639260,-1000.0,0.00014221,2]
[408524573,1773822639269,-1000.0,0.00014221,2]
[408524574,1773822639279,-1000.0,0.00014221,2]
[408524575,1773822639288,-1000.0,0.00014221,2]
[408524576,1773822639297,-166.66,0.00014285,2]
[408524577,1773822639306,-461.11214787,0.00014294,2]
[408524578,1773822639318,-650.59,0.00014322,2]
[408524579,1773822639327,-500.0,0.00014427,2]
[408524580,1773822639337,-527.3,0.00014427,2]
[408524581,1773822639346,-1112.7162,0.00014504,2]
[408524582,1773822639355,-11001.85017331,0.00014535,2]
[408524583,1773822639364,-6281.69396397,0.00014535,2]
[408524584,1773822639374,-363.0,0.00014638,2]
[408524585,1773822639384,-250.0,0.00014667,2]
[408524586,1773822639394,-500.0,0.00014667,2]
[408524587,1773822639403,-8882.6885148,0.00014667,2]
[408524588,1773822639413,-500.0,0.00014667,2]
[408524589,1773822639422,-250.0,0.00014667,2]
[408524590,1773822639432,-500.0,0.00014667,2]
[408524591,1773822639441,-250.0,0.00014667,2]
[408524592,1773822639451,-500.0,0.00014667,2]
[408524593,1773822639460,-250.0,0.00014667,2]
[408524594,1773822639469,-466.54836779,0.00014667,2]
[408524595,1773822639478,-250.0,0.00014667,2]
[408524596,1773822639487,-750.0,0.00014667,2]
[408524597,1773822639496,-250.0,0.00014667,2]
[408524598,1773822639505,-705.19462612,0.00014667,2]
[408524599,1773822639517,-250.0,0.00014667,2]
[408524600,1773822639526,-340.57196784,0.00014667,2]
[408524601,1773822639537,-250.0,0.00014667,2]
[408524602,1773822639547,-500.0,0.00014667,2]
[408524603,1773822639556,-500.0,0.00014667,2]
[408524604,1773822639567,-250.0,0.00014667,2]
[408524605,1773822639578,-500.0,0.00014667,2]
[408524606,1773822639590,-250.0,0.00014667,2]
[408524607,1773822639601,-500.0,0.00014667,2]
[408524608,1773822639611,-250.0,0.00014667,2]
[408524609,1773822639622,-500.0,0.00014667,2]
[408524610,1773822639632,-250.0,0.00014667,2]
[408524611,1773822639641,-500.0,0.00014667,2]
[408524612,1773822639651,-174.61919141,0.00014667,2]
[408524613,1773822639660,-500.0,0.00014667,2]
[408524614,1773822639669,-500.0,0.00014667,2]
[408524615,1773822639679,-500.0,0.00014667,2]
[408524616,1773822639690,-500.0,0.00014667,2]
[408524617,1773822639700,-500.0,0.00014667,2]
[408524618,1773822639710,-500.0,0.00014667,2]
[408524619,1773822639720,-298.32557378,0.00014667,2]
[408524620,1773822639730,-200.0,0.00014667,2]
[408524621,1773822639739,-151.0,0.00014667,2]
[408524622,1773822639749,-500.0,0.00014667,2]
[408524623,1773822639758,-500.0,0.00014667,2]
[408524624,1773822639768,-500.0,0.00014667,2]
[408524626,1773822639777,-500.0,0.00014667,2]
[408524627,1773822639786,-500.0,0.00014667,2]
[408524628,1773822639795,-500.0,0.00014667,2]
[408524629,1773822639804,-500.0,0.00014667,2]
[408524630,1773822639814,-500.0,0.00014667,2]
[408524631,1773822639823,-500.0,0.00014667,2]
[408524632,1773822639832,-500.0,0.00014667,2]
[408524633,1773822639842,-500.0,0.00014667,2]
[408524634,1773822639852,-500.0,0.00014667,2]
[408524635,1773822639861,-500.0,0.00014667,2]
[408524636,1773822639871,-10209.11,0.00014699,2]
[408524637,1773822639880,-500.0,0.00014701,2]
[408524638,1773822639890,-527.3,0.00014701,2]
[408524639,1773822639911,-500.0,0.00014722,2]
[408524640,1773822639921,-9211.34798985,0.00014722,2]
[408524641,1773822639931,-151.0,0.00014722,2]
[408524642,1773822639942,-166.66,0.00014742,2]
[408524643,1773822639951,-1502.09965026,0.00014768,2]
[408524644,1773822639961,-1505.50039082,0.00014768,2]
[408524645,1773822639971,-1220.51487627,0.00014768,2]
[408524646,1773822639982,-1500.0,0.00014768,2]
[408524647,1773822639991,-500.0,0.00014777,2]
[408524648,1773822640001,-9552.16786547,0.00014777,2]
[408524649,1773822640011,-151.0,0.00014777,2]
[408524650,1773822640021,-9905.5980765,0.00014832,2]
[408524651,1773822640030,-10272.10520533,0.00014887,2]
[408524652,1773822640040,-920.76015475,0.00014915,2]
[408524653,1773822640050,-10652.17309792,0.00014942,2]
[408524654,1773822640060,-1993.40129423,0.00014968,2]
[408524655,1773822640070,-821.55314475,0.00014968,2]
[408524656,1773822640080,-527.35,0.00014975,2]
[408524657,1773822640090,-11046.30350255,0.00014997,2]
[408524658,1773822640100,-461.11214787,0.00015015,2]
[408524659,1773822640110,-11001.85017331,0.00015015,2]
[408524660,1773822640119,-6281.69396397,0.00015015,2]
[408524661,1773822640129,-11455.01673214,0.00015052,2]
[408524662,1773822640139,-7272.77316092,0.00015098,2]
[408524663,1773822640152,-2000.0,0.00015104,2]
[408524664,1773822640163,-11878.85235123,0.00015107,2]
[408524665,1773822640173,-12443.72751697,0.00015162,2]
[408524666,1773822640184,-166.66,0.00015198,2]
[408524667,1773822640195,-181.08010149,0.00015215,2]
[408524668,1773822640205,-200.0,0.00015215,2]
[408524669,1773822640217,-988.843097,0.00015295,2]
[408524670,1773822640230,-2005.73880174,0.00015316,2]
[408524671,1773822640244,-1076.0,0.00015342,2]
[408524672,1773822640254,-150.35253234,0.00015346,2]
[408524673,1773822640264,-637.0,0.000154,2]
[408524674,1773822640273,-19977.39521357,0.00015407,2]
[408524675,1773822640283,-274.64095439,0.00015407,2]
[408524676,1773822640292,-6262.18839919,0.00015427,2]
[408524677,1773822640302,-198.7547238,0.0001549,2]
[408524678,1773822640312,-374.04950606,0.0001549,2]
[408524679,1773822640321,-11001.85017331,0.00015496,2]
[408524680,1773822640331,-6281.69396397,0.00015496,2]
[408524681,1773822640340,-2047.23,0.00015507,2]
[408524682,1773822640350,-637.0,0.00015522,2]
[408524683,1773822640360,-265.491871,0.00015546,7]
[408524684,1773822640370,-3893.2392029,0.0001559,2]
[408524685,1773822640379,-818.9116838,0.0001559,2]
[408524686,1773822640389,-166.66,0.00015655,2]
[408524687,1773822640398,-314.942054,0.00015657,7]
[408524688,1773822640408,-160.0,0.0001568,7]
[408524689,1773822640417,-205.06822,0.0001568,7]
[408524690,1773822640427,-250.136441,0.0001568,7]
[408524691,1773822640437,-461.11214787,0.00015737,2]
[408524692,1773822640446,-365.146795,0.00015775,7]
[408524693,1773822640461,-160.0,0.00015775,7]
[408524694,1773822640472,-268.995879,0.00015775,7]
[408524695,1773822640482,-377.991759,0.00015775,7]
[408524696,1773822640492,-283.403099,0.00015778,7]
[408524697,1773822640501,-637.0,0.00015786,2]
[408524698,1773822640511,-2009.0,0.000158,2]
[408524699,1773822640522,-238.888147,0.00015822,7]
[408524700,1773822640531,-152.15385338,0.00015823,2]
[408524701,1773822640541,-150.0,0.00015823,2]
[408524702,1773822640552,-151.43930188,0.00015823,2]
[408524703,1773822640562,-500.0,0.00015823,2]
[408524704,1773822640571,-500.0,0.00015823,2]
[408524705,1773822640582,-153.79412431,0.00015823,2]
[408524706,1773822640592,-500.0,0.00015823,2]
[408524707,1773822640601,-500.0,0.00015823,2]
[408524708,1773822640611,-500.0,0.00015823,2]
[408524709,1773822640621,-500.0,0.00015823,2]
[408524710,1773822640631,-500.0,0.00015823,2]
[408524711,1773822640640,-500.0,0.00015823,2]
[408524712,1773822640650,-500.0,0.00015823,2]
[408524713,1773822640660,-500.0,0.00015823,2]
[408524714,1773822640670,-500.0,0.00015823,2]
[408524715,1773822640680,-500.0,0.00015823,2]
[408524716,1773822640690,-500.0,0.00015823,2]
[408524717,1773822640700,-500.0,0.00015823,2]
[408524718,1773822640710,-25352.9091428,0.00015863,2]
[408524719,1773822640720,-3570.3108017,0.00015863,2]
[408524720,1773822640730,-409.0068365,0.00015863,2]
[408524721,1773822640740,-2000.0,0.0001589,2]
[408524722,1773822640750,-2047.23,0.00015895,2]
[408524723,1773822640760,-164.0,0.000159,2]
[408524724,1773822640771,-11001.85017331,0.00015977,2]
[408524725,1773822640782,-6281.69396397,0.00015977,2]
[408524726,1773822640794,-868.6990868,0.00015981,2]
[408524727,1773822640805,-182.7238951,0.00015981,2]
[408524728,1773822640816,-2095.0,0.00015989,5]
[408524729,1773822640826,-27633.11627102,0.00016,2]
[408524730,1773822640836,-6262.18839919,0.00016046,2]
[408524731,1773822640846,-151.0,0.00016066,2]
[408524732,1773822640855,-637.0,0.00016067,2]
[408524733,1773822640866,-637.0,0.00016076,2]
[408524734,1773822640876,-637.0,0.00016078,2]
[408524735,1773822640886,-214.0,0.00016078,2]
[408524736,1773822640896,-1262.643,0.00016097,2]
[408524737,1773822640906,-923.0,0.00016097,2]
[408524738,1773822640916,-1215.0,0.00016097,2]
[408524739,1773822640927,-3512.0,0.00016097,2]
[408524740,1773822640936,-2465.0,0.00016097,2]
[408524741,1773822640946,-1180474.89519171,0.000161,2]
[408524742,1773822640973,-1132.68254729,0.000161,2]
[408524743,1773822640998,-2638.15312271,0.000161,2]
[408524744,1773822641457,-1370.62607052,0.000161,2]
[408524745,1773822641470,-3785.02046612,0.000161,2]
[408524746,1773822641540,-1147.31510055,0.000161,2]
[408524754,1773822643120,-673.3,0.00015953,2]
[408524779,1773822646292,-151.0,0.00014667,2]
[408524780,1773822646302,-151.0,0.00015162,2]
[408524781,1773822646311,-3697.16002633,0.00015953,2]
[408524786,1773822954782,150.0,0.000301,120]
[408524801,1773823333458,5161.95,0.00030137,120]
[408524802,1773823439783,500.0,0.0003,120]
[408524803,1773823510312,294.46,0.00030137,120]
[408524811,1773823829537,2373.0,0.0003,120]
[408524824,1773823832328,-158.9403,0.00012583,2]
[408524826,1773823832337,-212.33090976,0.00012683,2]
[408524839,1773823832445,-2272.74909024,0.00012683,2]
[408524841,1773823832456,-499.0,0.00013504,2]
[408524843,1773823832465,-4573.9098,0.00013505,2]
[408524844,1773823832475,-1000.0,0.00013506,2]
[408524846,1773823832489,-32961.6878,0.00013506,2]
[408524848,1773823832499,-26568.0310045,0.00013688,2]
[408524851,1773823832509,-500.0,0.00013698,2]
[408524853,1773823832519,-500.0,0.00013698,2]
[408524855,1773823832528,-500.0,0.00013698,2]
[408524857,1773823832538,-500.0,0.00013698,2]
[408524859,1773823832548,-500.0,0.00013698,2]
[408524861,1773823832560,-159.98953286,0.00013698,2]
[408524863,1773823832569,-500.0,0.00013698,2]
[408524865,1773823832578,-500.0,0.00013698,2]
[408524867,1773823832587,-500.0,0.00013698,2]
[408524869,1773823832596,-500.0,0.00013698,2]
[408524871,1773823832606,-500.0,0.00013698,2]
[408524873,1773823832617,-500.0,0.00013698,2]
[408524875,1773823832627,-600.0,0.00013841,2]
[408524877,1773823832640,-500.0,0.00013841,2]
[408524879,1773823832650,-195.0,0.00013841,2]
[408524881,1773823832659,-300.0,0.00013841,2]
[408524884,1773823832670,-300.0,0.00013841,2]
[408524886,1773823832680,-365.3046169,0.00013841,2]
[408524888,1773823832691,-500.0,0.00013841,2]
[408524890,1773823832700,-500.0,0.00013841,2]
[408524892,1773823832710,-500.0,0.00013841,2]
[408524894,1773823832720,-195.0,0.00013841,2]
[408524896,1773823832729,-195.0,0.00013841,2]
[408524898,1773823832740,-195.0,0.00013841,2]
[408524900,1773823832749,-195.0,0.00013841,2]
[408524902,1773823832759,-600.0,0.00013841,2]
[408524904,1773823832768,-600.0,0.00013841,2]
[408524906,1773823832778,-600.0,0.00013841,2]
[408524908,1773823832787,-1004.1134493,0.00014021,2]
[408524910,1773823832797,-164.75,0.000145,2]
[408524912,1773823832807,-783.02,0.00014505,2]
[408524914,1773823832816,-270.71,0.00014541,2]
[408524916,1773823832825,-3240.0,0.00014604,2]
[408524918,1773823832835,-166.66,0.00014753,2]
[408524920,1773823832849,-783.02,0.00014779,2]
[408524922,1773823832871,-172.22247734,0.000149,2]
[408524924,1773823832889,-250.0,0.00015,2]
[408524926,1773823832899,-710.21256861,0.00015,2]
[408524928,1773823832908,-871.0,0.00015053,2]
[408524930,1773823832918,-166.66,0.00015064,2]
[408524932,1773823832928,-500.0,0.00015069,2]
[408524934,1773823832937,-500.0,0.00015069,2]
[408524936,1773823832947,-500.0,0.00015069,2]
[408524937,1773823832957,-500.0,0.00015069,2]
[408524938,1773823832973,-500.0,0.00015069,2]
[408524939,1773823832985,-500.0,0.00015069,2]
[408524940,1773823832994,-500.0,0.00015069,2]
[408524941,1773823833005,-500.0,0.00015069,2]
[408524942,1773823833014,-500.0,0.00015069,2]
[408524943,1773823833024,-583.36890574,0.00015069,2]
[408524944,1773823833038,-500.0,0.00015069,2]
[408524945,1773823833049,-500.0,0.00015069,2]